fUSD/lending_fUSD_20240706
["ID","MTS","AMOUNT","RATE_DAILY","PERIOD"]
[331323726,1720227049684,-500.0,0.00013999,2]
[331323728,1720227049694,-619.33148888,0.00013999,2]
[331323730,1720227049703,-500.0,0.00013999,2]
[331323732,1720227049714,-500.0,0.00013999,2]
[331323734,1720227049723,-500.0,0.00013999,2]
[331323736,1720227049733,-353.60211619,0.00013999,2]
[331323738,1720227049743,-291.66169656,0.00013999,2]
[331323740,1720227049753,-300.0,0.00013999,2]
[331323742,1720227049768,-300.0,0.00013999,2]
[331323744,1720227049777,-300.0,0.00013999,2]
[331323746,1720227049787,-300.0,0.00013999,2]
[331323748,1720227049798,-783.0,0.00014,2]
[331323750,1720227049808,-500.0,0.00014,2]
[331323752,1720227049817,-500.0,0.00014,2]
[331323754,1720227049827,-500.0,0.00014,2]
[331323756,1720227049837,-500.0,0.00014,2]
[331323758,1720227049848,-500.0,0.00014,2]
[331323760,1720227049857,-500.0,0.00014,2]
[331323762,1720227049867,-500.0,0.00014,2]
[331323764,1720227049876,-500.0,0.00014,2]
[331323766,1720227049886,-500.0,0.00014,2]
[331323768,1720227049896,-500.0,0.00014,2]
[331323770,1720227049905,-500.0,0.00014,2]
[331323772,1720227049914,-500.0,0.00014,2]
[331323774,1720227049923,-500.0,0.00014,2]
[331323776,1720227049934,-500.0,0.00014,2]
[331323778,1720227049945,-500.0,0.00014,2]
[331323780,1720227049956,-500.0,0.00014,2]
[331323782,1720227049966,-500.0,0.00014,2]
[331323784,1720227049975,-500.0,0.00014,2]
[331323786,1720227049986,-500.0,0.00014,2]
[331323788,1720227049995,-500.0,0.00014,2]
[331323790,1720227050005,-500.0,0.00014,2]
[331323792,1720227050015,-500.0,0.00014,2]
[331323794,1720227050024,-500.0,0.00014,2]
[331323796,1720227050033,-500.0,0.00014,2]
[331323798,1720227050042,-500.0,0.00014,2]
[331323800,1720227050054,-500.0,0.00014,2]
[331323802,1720227050063,-500.0,0.00014,2]
[331323804,1720227050074,-500.0,0.00014,2]
[331323806,1720227050083,-500.0,0.00014,2]
[331323807,1720227050093,-500.0,0.00014,2]
[331323809,1720227050103,-500.0,0.00014,2]
[331323811,1720227050112,-222.01611975,0.00014,2]
[331323902,1720227051248,-277.98388025,0.00014,2]
[331323904,1720227051258,-500.0,0.00014,2]
[331323906,1720227051268,-500.0,0.00014,2]
[331323908,1720227051277,-500.0,0.00014,2]
[331323909,1720227051287,-500.0,0.00014,2]
[331323911,1720227051295,-500.0,0.00014,2]
[331323913,1720227051305,-500.0,0.00014,2]
[331323915,1720227051314,-500.0,0.00014,2]
[331323917,1720227051323,-500.0,0.00014,2]
[331323918,1720227051332,-500.0,0.00014,2]
[331323920,1720227051341,-500.0,0.00014,2]
[331323922,1720227051350,-500.0,0.00014,2]
[331323924,1720227051359,-500.0,0.00014,2]
[331323925,1720227051368,-500.0,0.00014,2]
[331323927,1720227051378,-500.0,0.00014,2]
[331323929,1720227051387,-500.0,0.00014,2]
[331323931,1720227051396,-500.0,0.00014,2]
[331323932,1720227051405,-5562.52227517,0.00014,2]
[331323934,1720227051417,-14400.75795504,0.00014,2]
[331324064,1720227357990,739.18134344,0.00011199,2]
[331324065,1720227391359,520.08653154,0.00011199,2]
[331324066,1720227400555,349.80686348,0.00011199,2]
[331324067,1720227443320,368.66177259,0.00011199,2]
[331324068,1720227498118,155.99321892,0.00011199,2]
[331324069,1720227595792,356.0,0.00026,120]
[331324070,1720227772135,500.0,0.00026,120]
[331324082,1720227946585,155.0,0.00011199,2]
[331324093,1720228110110,-416.95,0.00011437,2]
[331324095,1720228110148,-6834.38973302,0.000117,2]
[331324097,1720228110257,-1438.94514404,0.000117,2]
[331324098,1720228110297,-7251.33973302,0.000117,2]
[331324099,1720228135760,-310.49361375,0.000117,2]
[331324103,1720228233160,-335.09064333,0.000116,2]
[331324106,1720228233177,-1000.0,0.00013269,2]
[331324109,1720228233195,-250.0,0.00013334,2]
[331324112,1720228233205,-336.62456763,0.00013574,2]
[331324118,1720228234791,-228.63912045,0.00013574,2]
[331324119,1720228234805,-416.95,0.00013701,2]
[331324120,1720228234817,-403.34944025,0.00013759,2]
[331324121,1720228234830,-300.0,0.00013799,2]
[331324122,1720228234855,-301.4504,0.000138,2]
[331324123,1720228234865,-1303.2904,0.000138,2]
[331324124,1720228234875,-112.31424319,0.000138,2]
[331324125,1720228234887,-5160.19575681,0.000138,2]
[331324126,1720228234897,-900.0,0.000138,5]
[331324127,1720228234906,-7991.75,0.000138,2]
[331324128,1720228234916,-978.4295,0.000138,2]
[331324129,1720228234926,-978.4295,0.000138,2]
[331324130,1720228234936,-319.5989622,0.00013802,2]
[331324131,1720228234945,-298.28065243,0.00013802,2]
[331324132,1720228234955,-242.40389105,0.00013802,2]
[331324133,1720228234965,-220.24,0.00013808,3]
[331324134,1720228234975,-163.92268902,0.00013873,2]
[331324135,1720228234985,-300.0,0.00013899,2]
[331324136,1720228234994,-265.03098126,0.00013899,2]
[331324146,1720228245966,-269.77961105,0.00013802,2]
[331324148,1720228245976,-34.96901874,0.00013899,2]
[331324150,1720228245986,-300.0,0.00013899,2]
[331324151,1720228245995,-300.0,0.00013899,2]
[331324153,1720228246005,-300.0,0.00013899,2]
[331324155,1720228246014,-2957.80322882,0.000139,2]
[331324157,1720228246026,-1078.0799953,0.000139,2]
[331324158,1720228246039,-1095.36771121,0.000139,2]
[331324159,1720228246050,-1840.7599115,0.000139,2]
[331324160,1720228246062,-11902.30971465,0.000139,2]
[331324161,1720228246074,-1595.4278427,0.000139,2]
[331324162,1720228246086,-1482.26936924,0.000139,2]
[331324163,1720228246099,-1152.23077857,0.000139,2]
[331324164,1720228246111,-1696.37303496,0.000139,2]
[331324165,1720228246122,-1629.96591577,0.000139,2]
[331324166,1720228246133,-9720.19052011,0.000139,2]
[331324167,1720228246145,-1500.0,0.000139,2]
[331324197,1720228504801,163.59,0.00010881,2]
[331324198,1720228748454,141.6523424,0.00011199,2]
[331324199,1720228748486,2532.47831404,0.00011199,2]
[331324201,1720229101913,356.30245499,0.00011199,2]
[331324220,1720229392311,-232.65185718,0.00011465,2]
[331324224,1720229432266,-142.59814282,0.00011465,2]
[331324225,1720229432276,-150.75113269,0.00012302,2]
[331324228,1720229432287,-4.51137724,0.00012302,2]
[331324230,1720229432296,-332.70794276,0.00012302,2]
[331324233,1720229432307,-5.47274024,0.00012302,2]
[331324235,1720229432319,-888.40803661,0.00013304,2]
[331324237,1720229432330,-111.59196339,0.00013304,2]
[331324239,1720229432340,-250.0,0.00013352,2]
[331324241,1720229432349,-102.19198241,0.00013472,2]
[331324277,1720229439176,-52.88389328,0.00013472,2]
[331324279,1720229439187,-324.84582911,0.00013472,2]
[331324288,1720229441119,-40.29682815,0.00013472,2]
[331324291,1720229441130,-1068.17018491,0.00013574,2]
[331324292,1720229441140,-299.842445,0.00013729,2]
[331324294,1720229441152,-75.407555,0.00013729,2]
[331324296,1720229441162,-631.83313,0.0001376,2]
[331324297,1720229441172,-707.2054614,0.000138,2]
[331324302,1720229443066,-297.24185373,0.000138,2]
[331324307,1720229443648,-2136.12262361,0.000138,2]
[331324365,1720229447315,-250.0,0.00013622,2]
[331324367,1720229447326,-2322.40269881,0.000137,2]
[331324369,1720229447336,-324.14944229,0.000138,2]
[331324371,1720229447348,-1087.15276736,0.000138,2]
[331324376,1720229447896,-2325.58293076,0.000138,2]
[331324379,1720229654811,2824.06327034,9e-05,2]
[331324380,1720229732203,155.14665417,0.00010909,2]
[331324381,1720229738233,386.58,0.00011141,2]
[331324382,1720229817579,4088.30530853,0.00011199,2]
[331324383,1720229883534,2204.96508718,0.00011199,2]
[331324386,1720229954234,528.23282693,0.00011199,2]
[331324387,1720229990262,722.84871215,0.00011199,2]
[331324388,1720230020164,519.88634596,0.00011199,2]
[331324389,1720230021205,536.16233442,0.00011199,2]
[331324390,1720230046379,169.91389328,0.00011199,2]
[331324391,1720230082956,158.64365863,0.00011199,2]
[331324392,1720230114881,227.19964772,0.00011199,2]
[331324393,1720230117004,155.26840283,0.00011199,2]
[331324394,1720230117712,164.1560373,0.00011199,2]
[331324395,1720230120482,218.87668699,0.00011199,2]
[331324396,1720230127427,405.14638905,0.00011199,2]
[331324397,1720230128031,309.02130053,0.00011199,2]
[331324398,1720230132952,155.94799773,0.00011199,2]
[331324399,1720230133159,155.29862192,0.00011199,2]
[331324400,1720230140268,155.22310351,0.00011199,2]
[331324401,1720230159858,155.24121393,0.00011199,2]
[331324402,1720230161938,439.52111545,0.00011199,2]
[331324403,1720230174042,155.33944343,0.00011199,2]
[331324404,1720230176496,155.0,0.00011199,2]
[331324405,1720230179006,155.29460536,0.00011199,2]
[331324406,1720230191382,491.62487956,0.00011199,2]
[331324407,1720230194055,367.25582466,0.00011199,2]
[331324408,1720230194548,235.94587051,0.00011199,2]
[331324409,1720230197381,155.34297194,0.00011199,2]
[331324410,1720230199257,206.29264366,0.00011199,2]
[331324412,1720230226183,183.85785098,0.00011199,2]
[331324413,1720230228724,155.0,0.00011199,2]
[331324414,1720230248269,155.0,0.00011199,2]
[331324415,1720230251126,35637.52732064,0.00011199,2]
[331324416,1720230292168,530.62911332,0.00011199,2]
[331324417,1720230326519,367.25,0.0001029,2]
[331324424,1720230447698,1342.22856252,0.00011199,2]
[331324426,1720230506942,155.24332289,0.00011199,2]
[331324427,1720230525183,1405.36390433,0.00011199,7]
[331324428,1720230545957,518.82270875,0.00011199,2]
[331324429,1720230551559,163.95538761,0.00011199,2]
[331324457,1720230580000,155.31483576,0.00011199,2]
[331324458,1720230626882,526.547858,0.00011199,2]
[331324459,1720230628171,155.0,0.00011199,2]
[331324474,1720230632684,-1000.0,0.00011872,2]
[331324475,1720230632693,-257.0618535,0.00012108,2]
[331324476,1720230632702,-1440.18,0.00012193,2]
[331324477,1720230632711,-60.26048569,0.00012208,2]
[331324478,1720230632722,-1001.55012815,0.00012208,2]
[331324479,1720230632732,-791.24822385,0.00012208,2]
[331324480,1720230632744,-883.38639551,0.00012208,2]
[331324481,1720230632755,-245.2747668,0.00012208,2]
[331324482,1720230632764,-177.29883016,0.00012211,2]
[331324483,1720230632775,-72.70116984,0.00012211,2]
[331324484,1720230632784,-377.29883016,0.00012241,2]
[331324485,1720230633015,-903.65116984,0.00012241,2]
[331324487,1720230633024,-113.3919576,0.00012273,2]
[331324490,1720230633037,-42.09127878,0.00012273,2]
[331324492,1720230633046,-155.80293307,0.00012273,2]
[331324494,1720230633058,-155.0,0.00012302,2]
[331324496,1720230633068,-301.6213238,0.00012314,2]
[331324497,1720230633078,-479.69627214,0.00012314,2]
[331324498,1720230633088,-156.13,0.00012335,2]
[331324499,1720230633097,-369.95637682,0.00012376,2]
[331324500,1720230633110,-16416.41362318,0.00012376,2]
[331324501,1720230633120,-250.0,0.00012475,2]
[331324502,1720230633129,-150.99,0.00012475,2]
[331324503,1720230633138,-164.86,0.00012475,2]
[331324504,1720230633149,-150.99,0.00012475,2]
[331324505,1720230633159,-367.25,0.00012554,2]
[331324506,1720230633184,-150.0,0.00012767,2]
[331324507,1720230633194,-249.65,0.00012783,2]
[331324508,1720230633204,-249.65,0.00012786,2]
[331324509,1720230633213,-249.65,0.0001279,2]
[331324510,1720230633222,-249.65,0.00012793,2]
[331324511,1720230633231,-249.65,0.00012797,2]
[331324512,1720230633250,-499.99,0.00012797,2]
[331324513,1720230633259,-249.65,0.000128,2]
[331324514,1720230633274,-249.65,0.00012803,2]
[331324515,1720230633283,-249.65,0.00012807,2]
[331324516,1720230633293,-249.65,0.0001281,2]
[331324517,1720230633302,-150.0,0.00012813,2]
[331324518,1720230633311,-249.65,0.00012813,2]
[331324519,1720230633321,-249.65,0.00012817,2]
[331324520,1720230633330,-249.65,0.0001282,2]
[331324521,1720230633340,-249.65,0.00012824,2]
[331324522,1720230633349,-249.65,0.00012827,2]
[331324523,1720230633358,-249.65,0.0001283,2]
[331324524,1720230633368,-249.65,0.00012834,2]
[331324525,1720230633377,-198.2,0.00012836,2]
[331324526,1720230633387,-249.65,0.00012837,2]
[331324527,1720230633396,-249.65,0.0001284,2]
[331324528,1720230633406,-249.65,0.00012844,2]
[331324529,1720230633418,-249.65,0.00012847,2]
[331324530,1720230633427,-170.78,0.00012851,2]
[331324531,1720230633438,-150.35,0.00012878,2]
[331324532,1720230633448,-354.94,0.00012978,2]
[331324533,1720230633458,-1000.0,0.00013356,2]
[331324534,1720230633468,-152.12303479,0.00013488,2]
[331324535,1720230633478,-150.0,0.00013488,2]
[331324536,1720230633487,-647.47494389,0.00013516,2]
[331324537,1720230633496,-59914.63605164,0.00013574,2]
[331324570,1720230641874,-1749.81210694,0.00013574,2]
[331324572,1720230641886,-8164.35235471,0.00013574,2]
[331324785,1720230648061,-651.34078891,0.00013543,2]
[331324786,1720230648077,-208.14537967,0.00013543,2]
[331324787,1720230648086,-98.53579476,0.00013574,2]
[331324788,1720230648102,-590.50109525,0.00013574,2]
[331324789,1720230648113,-1477.80946971,0.00013574,2]
[331324790,1720230649759,-304.58918266,0.00013574,2]
[331324800,1720230808293,2858.53354963,0.00011199,2]
[331324801,1720230989640,119.52392997,0.00010779,2]
[331324802,1720230989669,210.99607003,0.00010779,2]
[331324803,1720231011092,465.90561597,0.00011199,2]
[331324804,1720231015868,547.24050391,0.00011199,2]
[331324805,1720231020989,659.63209981,0.00011199,2]
[331324806,1720231025087,839.18546949,0.00011199,2]
[331324807,1720231062544,265.66760513,0.00011199,2]
[331324808,1720231094045,155.20149999,0.00011199,2]
[331324809,1720231098575,263.73556792,0.00011199,2]
[331324810,1720231138914,155.0,0.00011199,2]
[331324811,1720231153532,155.0,0.00011199,2]
[331324812,1720231168340,266.50015647,0.00011199,2]
[331324813,1720231192149,525.39189184,0.00011199,2]
[331324814,1720231353014,164.34608351,0.00011199,2]
[331324815,1720231395211,733.76566677,0.00011199,2]
[331324816,1720231413166,155.21303222,0.00011199,2]
[331324817,1720231514996,155.06185702,0.00011199,2]
[331324818,1720231539972,313.99,0.00010697,2]
[331324823,1720231597568,518.56853653,0.00011199,2]
[331324828,1720231649670,452.88460246,0.00011199,2]
[331324893,1720231838121,-1181.977028,0.00012501,2]
[331324894,1720231838131,-3687.89503232,0.00012564,2]
[331324895,1720231838143,-75.02608771,0.00012564,2]
[331324896,1720231838152,-167.07293921,0.0001263,2]
[331324897,1720231838162,-162.34025905,0.00012664,2]
[331324898,1720231838173,-237.65974095,0.00012664,2]
[331324899,1720231838183,-3676.7453,0.0001273,2]
[331324900,1720231838193,-313.99,0.00012961,2]
[331324901,1720231838202,-15.44902982,0.00012971,2]
[331324902,1720231838213,-134.55097018,0.00012971,2]
[331324903,1720231838222,-6399.92241172,0.00012972,2]
[331324904,1720231838234,-746.56164777,0.00012972,2]
[331324905,1720231838245,-830.08689098,0.00012972,2]
[331324906,1720231838260,-280.83854349,0.00012972,2]
[331324947,1720231842015,-250.0,0.0001257,2]
[331324949,1720231842024,-7905.40782334,0.00012972,2]
[331324951,1720231842036,-89413.1826827,0.00012972,2]
[331324953,1720231842046,-150.0,0.000132,2]
[331324955,1720231842056,-1045.89,0.000133,2]
[331324957,1720231842066,-499.99,0.000133,2]
[331324959,1720231842076,-150.0,0.000133,2]
[331324961,1720231842085,-150.0,0.000133,2]
[331324963,1720231842095,-191.6,0.000133,2]
[331324965,1720231842104,-392.5205,0.00013372,2]
[331324967,1720231842113,-300.0,0.000134,2]
[331324969,1720231842124,-150.0,0.000134,2]
[331324971,1720231842133,-1708.66,0.000134,2]
[331324973,1720231842143,-500.0,0.00013464,2]
[331324975,1720231842152,-500.0,0.00013465,2]
[331324977,1720231842161,-500.0,0.00013465,2]
[331324978,1720231842170,-150.0,0.00013488,2]
[331324979,1720231842179,-452.95239419,0.0001354,2]
[331324980,1720231842188,-166.60509874,0.0001354,2]
[331324981,1720231842199,-2500.0,0.0001354,2]
[331324983,1720231842208,-1514.59732339,0.00013557,2]
[331324984,1720231842218,-150.0,0.00013561,2]
[331324985,1720231842227,-1636.31593,0.00013574,2]
[331324986,1720231842237,-687.94015324,0.00013574,2]
[331324987,1720231842246,-150.0,0.0001359,2]
[331324988,1720231842255,-150.0,0.00013599,2]
[331324989,1720231842264,-297.40484558,0.00013599,2]
[331324991,1720231842274,-329.33818297,0.00013601,2]
[331324992,1720231842283,-300.0,0.00013606,2]
[331324993,1720231842292,-150.0,0.00013611,2]
[331324994,1720231842301,-3344.1558,0.00013621,2]
[331324995,1720231842311,-9182.4777,0.00013621,2]
[331324996,1720231842321,-150.0,0.00013626,2]
[331324997,1720231842330,-150.0,0.00013631,2]
[331324998,1720231842340,-151.0,0.00013631,2]
[331324999,1720231842349,-208432.223,0.0001364,2]
[331325000,1720231842358,-68022.5205,0.0001364,2]
[331325001,1720231842367,-151.0,0.0001364,2]
[331325002,1720231842376,-151.0,0.0001364,2]
[331325003,1720231842385,-151.0,0.0001364,2]
[331325004,1720231842394,-151.0,0.0001364,2]
[331325005,1720231842408,-151.0,0.0001364,2]
[331325006,1720231842417,-151.0,0.0001364,2]
[331325007,1720231842426,-234.879786,0.0001364,2]
[331325008,1720231842436,-234.879786,0.0001364,2]
[331325009,1720231842447,-234.879786,0.0001364,2]
[331325010,1720231842456,-234.879786,0.0001364,2]
[331325011,1720231842464,-150.0,0.00013641,2]
[331325012,1720231842473,-150.0,0.00013644,2]
[331325013,1720231842484,-150.0,0.00013644,2]
[331325014,1720231842494,-150.0,0.00013653,2]
[331325015,1720231842504,-150.0,0.00013661,2]
[331325016,1720231842513,-150.0,0.00013674,2]
[331325017,1720231842522,-150.0,0.00013676,2]
[331325018,1720231842531,-150.0,0.00013688,2]
[331325019,1720231842541,-154.12687974,0.0001369,2]
[331325020,1720231842550,-200.0,0.00013699,2]
[331325021,1720231842559,-200.0,0.00013699,2]
[331325022,1720231842568,-200.0,0.00013699,2]
[331325023,1720231842577,-367.898274,0.00013699,2]
[331325024,1720231842586,-367.898274,0.00013699,2]
[331325025,1720231842595,-367.898274,0.00013699,2]
[331325026,1720231842604,-367.898274,0.00013699,2]
[331325027,1720231842613,-367.898274,0.00013699,2]
[331325028,1720231842622,-367.898274,0.00013699,2]
[331325029,1720231842631,-151.0,0.00013699,2]
[331325030,1720231842642,-271.892451,0.00013699,2]
[331325031,1720231842651,-1300.0,0.000137,5]
[331325032,1720231842661,-150.0,0.00013701,2]
[331325033,1720231842670,-150.0,0.00013702,2]
[331325034,1720231842679,-150.0,0.00013702,2]
[331325035,1720231842688,-150.0,0.00013709,2]
[331325036,1720231842699,-150.0,0.00013718,2]
[331325037,1720231842709,-150.0,0.00013735,2]
[331325038,1720231842719,-150.0,0.00013737,2]
[331325039,1720231842728,-150.0,0.00013738,2]
[331325040,1720231842738,-150.0,0.00013738,2]
[331325041,1720231842748,-1668.92931238,0.00013739,2]
[331325042,1720231842757,-300.0,0.00013739,2]
[331325043,1720231842767,-300.0,0.00013739,2]
[331325044,1720231842786,-367.898274,0.00013739,2]
[331325045,1720231842796,-367.898274,0.00013739,2]
[331325046,1720231842806,-240.590543,0.00013739,2]
[331325047,1720231842815,-151.0,0.00013739,2]
[331325048,1720231842825,-234.879786,0.00013739,2]
[331325049,1720231842834,-234.879786,0.00013739,2]
[331325050,1720231842843,-500.0,0.0001374,2]
[331325051,1720231842853,-500.0,0.0001374,2]
[331325052,1720231842862,-500.0,0.0001374,2]
[331325053,1720231842871,-500.0,0.0001374,2]
[331325054,1720231842880,-500.0,0.0001374,2]
[331325055,1720231842889,-500.0,0.0001374,2]
[331325056,1720231842899,-500.0,0.0001374,2]
[331325057,1720231842908,-500.0,0.0001374,2]
[331325058,1720231842918,-500.0,0.0001374,2]
[331325059,1720231842928,-500.0,0.0001374,2]
[331325060,1720231842937,-500.0,0.0001374,2]
[331325061,1720231842948,-500.0,0.0001374,2]
[331325062,1720231842957,-500.0,0.0001374,2]
[331325063,1720231842967,-500.0,0.0001374,2]
[331325064,1720231842976,-288.88,0.0001374,2]
[331325065,1720231842986,-500.0,0.0001374,2]
[331325066,1720231842995,-500.0,0.0001374,2]
[331325067,1720231843005,-500.0,0.0001374,2]
[331325068,1720231843014,-500.0,0.0001374,2]
[331325069,1720231843024,-500.0,0.0001374,2]
[331325070,1720231843034,-500.0,0.0001374,2]
[331325071,1720231843043,-500.0,0.0001374,2]
[331325072,1720231843053,-500.0,0.0001374,2]
[331325073,1720231843063,-500.0,0.0001374,2]
[331325074,1720231843072,-500.0,0.0001374,2]
[331325075,1720231843083,-500.0,0.0001374,2]
[331325076,1720231843092,-500.0,0.0001374,2]
[331325077,1720231843101,-500.0,0.0001374,2]
[331325078,1720231843111,-500.0,0.0001374,2]
[331325079,1720231843121,-500.0,0.0001374,2]
[331325080,1720231843130,-500.0,0.0001374,2]
[331325081,1720231843139,-500.0,0.0001374,2]
[331325082,1720231843148,-500.0,0.0001374,2]
[331325083,1720231843157,-500.0,0.0001374,2]
[331325084,1720231843167,-500.0,0.0001374,2]
[331325085,1720231843176,-500.0,0.0001374,2]
[331325086,1720231843185,-500.0,0.0001374,2]
[331325087,1720231843194,-500.0,0.0001374,2]
[331325088,1720231843205,-500.0,0.0001374,2]
[331325089,1720231843214,-500.0,0.0001374,2]
[331325090,1720231843223,-500.0,0.0001374,2]
[331325091,1720231843232,-500.0,0.0001374,2]
[331325092,1720231843242,-500.0,0.0001374,2]
[331325093,1720231843251,-500.0,0.0001374,2]
[331325094,1720231843261,-500.0,0.0001374,2]
[331325095,1720231843520,-500.0,0.0001374,2]
[331325096,1720231843531,-500.0,0.0001374,2]
[331325097,1720231843541,-500.0,0.0001374,2]
[331325098,1720231843552,-500.0,0.0001374,2]
[331325099,1720231843562,-501.69,0.0001374,2]
[331325100,1720231843573,-500.0,0.0001374,2]
[331325101,1720231843583,-500.0,0.0001374,2]
[331325102,1720231843593,-500.0,0.0001374,2]
[331325103,1720231843602,-500.0,0.0001374,2]
[331325104,1720231843611,-500.0,0.0001374,2]
[331325105,1720231843620,-500.0,0.0001374,2]
[331325106,1720231843629,-500.0,0.0001374,2]
[331325107,1720231843640,-500.0,0.0001374,2]
[331325108,1720231843651,-500.0,0.0001374,2]
[331325109,1720231843660,-500.0,0.0001374,2]
[331325110,1720231843672,-500.0,0.0001374,2]
[331325111,1720231843681,-500.0,0.0001374,2]
[331325112,1720231843691,-501.89,0.0001374,2]
[331325113,1720231843703,-500.0,0.0001374,2]
[331325114,1720231843712,-500.0,0.0001374,2]
[331325115,1720231843721,-500.0,0.0001374,2]
[331325116,1720231843730,-500.0,0.0001374,2]
[331325117,1720231843739,-500.0,0.0001374,2]
[331325118,1720231843749,-500.0,0.0001374,2]
[331325119,1720231843759,-500.0,0.0001374,2]
[331325120,1720231843768,-500.0,0.0001374,2]
[331325121,1720231843778,-500.0,0.0001374,2]
[331325122,1720231843787,-500.0,0.0001374,2]
[331325123,1720231843797,-500.0,0.0001374,2]
[331325124,1720231843812,-500.0,0.0001374,2]
[331325125,1720231843844,-500.0,0.0001374,2]
[331325126,1720231843878,-500.0,0.0001374,2]
[331325127,1720231843888,-500.0,0.0001374,2]
[331325128,1720231843898,-500.0,0.0001374,2]
[331325129,1720231843908,-500.0,0.0001374,2]
[331325130,1720231843918,-500.0,0.0001374,2]
[331325131,1720231843927,-500.0,0.0001374,2]
[331325132,1720231843937,-500.0,0.0001374,2]
[331325133,1720231843946,-500.0,0.0001374,2]
[331325134,1720231843958,-500.0,0.0001374,2]
[331325135,1720231843968,-500.0,0.0001374,2]
[331325136,1720231843980,-500.0,0.0001374,2]
[331325137,1720231843990,-500.0,0.0001374,2]
[331325138,1720231843999,-500.0,0.0001374,2]
[331325139,1720231844008,-500.0,0.0001374,2]
[331325140,1720231844017,-500.0,0.0001374,2]
[331325141,1720231844027,-500.0,0.0001374,2]
[331325142,1720231844036,-500.0,0.0001374,2]
[331325143,1720231844045,-500.0,0.0001374,2]
[331325144,1720231844055,-500.0,0.0001374,2]
[331325145,1720231844064,-500.0,0.0001374,2]
[331325146,1720231844073,-500.0,0.0001374,2]
[331325147,1720231844083,-500.0,0.0001374,2]
[331325148,1720231844093,-500.0,0.0001374,2]
[331325149,1720231844102,-500.0,0.0001374,2]
[331325150,1720231844112,-500.0,0.0001374,2]
[331325151,1720231844121,-500.0,0.0001374,2]
[331325152,1720231844130,-392.75,0.0001374,2]
[331325153,1720231844139,-500.0,0.0001374,2]
[331325154,1720231844149,-500.0,0.0001374,2]
[331325155,1720231844159,-500.0,0.0001374,2]
[331325156,1720231844169,-500.0,0.0001374,2]
[331325157,1720231844179,-500.0,0.0001374,2]
[331325158,1720231844188,-500.0,0.0001374,2]
[331325159,1720231844198,-500.0,0.0001374,2]
[331325160,1720231844208,-500.0,0.0001374,2]
[331325161,1720231844217,-500.0,0.0001374,2]
[331325162,1720231844226,-500.0,0.0001374,2]
[331325163,1720231844235,-500.0,0.0001374,2]
[331325164,1720231844245,-500.0,0.0001374,2]
[331325165,1720231844254,-500.0,0.0001374,2]
[331325166,1720231844263,-500.0,0.0001374,2]
[331325167,1720231844277,-524.01,0.0001374,2]
[331325168,1720231844288,-500.0,0.0001374,2]
[331325169,1720231844297,-151.0,0.0001374,2]
[331325170,1720231844307,-151.0,0.0001374,2]
[331325171,1720231844316,-151.0,0.0001374,2]
[331325172,1720231844326,-151.0,0.0001374,2]
[331325173,1720231844335,-150.0,0.0001374,2]